[Event "17th Memorial Lezcano Montalvo 2025"]
[Site "Gran Canaria"]
[Date "2025.04.13"]
[Round "2.52"]
[White "Mykhyeyev, Serafim"]
[Black "Cappelle, Cedric"]
[Result "0-1"]
[Annotator "NA"]
[ECO "B22"]
[WhiteElo "1516"]
[BlackElo "1774"]
[PlyCount "94"]
[EventDate "2025.04.13"]
[EventType "swiss"]
[EventCountry "ESP"]
[SourceTitle "playchess.com"]
[Source "ChessBase"]
[SourceQuality "1"]
[TimeControl "5400+30"]

1. e4 {[%emt 1:31:00]} e6 {[%emt 0:00:09]} 2. d4 {[%emt 0:00:00]} d5 {[%emt 0:00:06]} 3. exd5 {[%emt 0:00:00]} exd5 {[%emt 0:00:08]} 4. Bd3 {[%emt 0:00:00]} c5 {[%emt 0:00:31]} 5. c3 {[%emt 0:00:00]} Nf6 {[%emt 0:07:03]} 6. Nf3 {[%emt 0:00:00]} Bg4 {[%emt 0:01:08]} 7. Be3 {[%emt 0:00:00]} c4 {[%emt 0:03:53]} 8. Bc2 {[%emt 0:00:00]} b5 {[%emt 0:01:05]} 9. Nbd2 {[%emt 0:00:00]} Nbd7 {[%emt 0:02:47]} 10. O-O {[%emt 0:00:00]} Bd6 {[%emt 0:09:56]} 11. h3 {[%emt 0:00:00]} Bh5 {[%emt 0:03:21]} 12. a4 {[%emt 0:00:00]} a6 {[%emt 0:00:16]} 13. axb5 {[%emt 0:00:00]} axb5 {[%emt 0:00:13]} 14. Re1 {[%emt 0:00:00]} O-O {[%emt 0:01:19]} 15. Rxa8 {[%emt 0:00:00]} Qxa8 {[%emt 1:06:05]} 16. Qa1 {[%emt 0:00:00]} Qc6 {[%emt 0:00:00]} 17. Bg5 {[%emt 0:03:05]} Ra8 {[%emt 0:00:00]} 18. Qb1 {[%emt 0:00:43]} Bg6 {[%emt 0:00:00]} 19. Bxf6 {[%emt 0:01:58]} Bxc2 {[%emt 0:00:00]} 20. Qxc2 {[%emt 0:00:10]} Nxf6 {[%emt 0:00:00]} 21. Ne5 {[%emt 0:01:12]} Qc7 {[%emt 0:00:00]} 22. Ndf3 {[%emt 0:01:54]} Ne4 {[%emt 0:00:00]} 23. Qe2 {[%emt 0:01:01]} f6 {[%emt 0:00:00]} 24. Ng4 {[%emt 0:00:24]} Qd7 {[%emt 0:00:00]} 25. Ne3 {[%emt 0:00:21]} Bf8 {[%emt 0:00:00]} 26. Nd2 {[%emt 0:00:35]} Nxd2 {[%emt 0:00:00]} 27. Qxd2 {[%emt 0:00:08]} b4 {[%emt 0:00:00]} 28. Rb1 {[%emt 0:00:58]} b3 {[%emt 0:00:00]} 29. Qd1 {[%emt 0:00:27]} Qe6 {[%emt 0:00:12]} 30. Qf3 {[%emt 0:00:34]} Rd8 {[%emt 0:02:01]} 31. Qf5 {[%emt 0:00:30]} Qxf5 {[%emt 0:01:16]} 32. Nxf5 {[%emt 0:00:08]} g6 {[%emt 0:02:35]} 33. Ne3 {[%emt 0:00:07]} Bh6 {[%emt 0:00:44]} 34. Kf1 {[%emt 0:01:04]} f5 {[%emt 0:00:23]} 35. Ra1 {[%emt 0:00:45]} Kf7 {[%emt 0:01:01]} 36. Ra7+ {[%emt 0:00:14]} Ke6 {[%emt 0:00:24]} 37. Rxh7 {[%emt 0:00:25]} Bxe3 {[%emt 0:00:13]} 38. fxe3 {[%emt 0:00:08]} Ra8 {[%emt 0:00:08]} 39. Rb7 {[%emt 0:00:58]} Ra2 {[%emt 0:00:25]} 40. Rb6+ {[%emt 0:00:18]} Kf7 {[%emt 0:00:26]} 41. Rb7+ {[%emt 0:00:22]} Kf6 {[%emt 0:00:18]} 42. h4 {[%emt 0:00:32]} Rxb2 {[%emt 0:00:17]} 43. Rb6+ {[%emt 0:00:06]} Kg7 {[%emt 0:00:27]} 44. Rb5 {[%emt 0:00:57]} Rc2 {[%emt 0:00:26]} 45. Ke1 {[%emt 0:00:24]} b2 {[%emt 0:00:23]} 46. Rb7+ {[%emt 0:00:15]} Kh6 {[%emt 0:00:13]} 47. Kd1 {[%emt 0:00:14]} Rc1+ {[%emt 0:00:07]} 0-1

[Event "17th Memorial Lezcano Montalvo 2025"]
[Site "Gran Canaria"]
[Date "2025.04.13"]
[Round "2.53"]
[White "Guerra Aleman, Marcial"]
[Black "Santana Slamova, Yassine"]
[Result "1-0"]
[Annotator "NA"]
[ECO "A00"]
[WhiteElo "1766"]
[BlackElo "1515"]
[PlyCount "84"]
[EventDate "2025.04.13"]
[EventType "swiss"]
[EventCountry "ESP"]
[SourceTitle "playchess.com"]
[Source "ChessBase"]
[SourceQuality "1"]
[TimeControl "5400+30"]

1. Nc3 {[%emt 0:00:09]} e5 {[%emt 0:00:30]} 2. g3 {[%emt 0:00:28]} Nf6 {[%emt 0:00:48]} 3. d3 {[%emt 0:00:14]} Nc6 {[%emt 0:00:00]} 4. Bg2 {[%emt 0:00:08]} Bb4 {[%emt 0:00:09]} 5. a3 {[%emt 0:00:29]} Ba5 {[%emt 0:00:46]} 6. b4 {[%emt 0:00:29]} Bb6 {[%emt 0:00:00]} 7. Nf3 {[%emt 0:02:34]} d6 {[%emt 0:00:29]} 8. Bg5 {[%emt 0:03:30]} Be6 {[%emt 0:01:43]} 9. O-O {[%emt 0:00:15]} h6 {[%emt 0:00:49]} 10. Be3 {[%emt 0:00:31]} Nd5 {[%emt 0:02:36]} 11. Nxd5 {[%emt 0:01:15]} Bxd5 {[%emt 0:00:04]} 12. c4 {[%emt 0:00:19]} Bxf3 {[%emt 0:00:37]} 13. Bxf3 {[%emt 0:00:20]} Bxe3 {[%emt 0:00:58]} 14. fxe3 {[%emt 0:00:08]} Rb8 {[%emt 0:01:52]} 15. Bxc6+ {[%emt 0:06:40]} bxc6 {[%emt 0:00:12]} 16. Qa4 {[%emt 0:00:03]} O-O {[%emt 0:00:54]} 17. Qxc6 {[%emt 0:02:11]} f5 {[%emt 0:03:13]} 18. d4 {[%emt 0:18:03]} Qg5 {[%emt 0:13:53]} 19. Qf3 {[%emt 0:08:03]} f4 {[%emt 0:03:30]} 20. Qd5+ {[%emt 0:02:45]} Kh8 {[%emt 0:00:35]} 21. exf4 {[%emt 0:02:44]} Rxf4 {[%emt 0:01:01]} 22. dxe5 {[%emt 0:50:12]} Rxf1+ 23. Rxf1 {[%emt 0:00:00]} Qe3+ {[%emt 0:02:45]} 24. Rf2 {[%emt 0:00:00]} Rf8 {[%emt 0:02:43]} 25. Qg2 {[%emt 0:00:00]} dxe5 {[%emt 0:00:28]} 26. a4 {[%emt 0:00:00]} Rxf2 {[%emt 0:01:16]} 27. Qxf2 {[%emt 0:00:00]} Qc1+ {[%emt 0:00:06]} 28. Kg2 {[%emt 0:00:00]} Qxc4 {[%emt 0:00:47]} 29. Qf8+ {[%emt 0:00:00]} Kh7 {[%emt 0:00:00]} 30. Qf5+ {[%emt 0:00:00]} Kh8 {[%emt 0:00:47]} 31. Qxe5 {[%emt 0:00:00]} Qxb4 {[%emt 0:00:00]} 32. Qe8+ {[%emt 0:00:00]} Kh7 {[%emt 0:00:02]} 33. Kf3 {[%emt 0:00:00]} Qb3+ {[%emt 0:01:51]} 34. e3 {[%emt 0:00:00]} Qd1+ {[%emt 0:00:39]} 35. Kf4 {[%emt 0:00:00]} Qd6+ {[%emt 0:01:06]} 36. Qe5 {[%emt 0:00:00]} Qb4+ {[%emt 0:00:25]} 37. Qe4+ {[%emt 0:00:00]} Qxe4+ {[%emt 0:01:09]} 38. Kxe4 {[%emt 0:00:00]} Kg8 {[%emt 0:01:24]} 39. Kd5 {[%emt 0:00:00]} Kf8 {[%emt 0:00:13]} 40. Kc6 {[%emt 0:00:00]} Ke7 {[%emt 0:00:36]} 41. Kxc7 {[%emt 0:00:00]} Ke6 {[%emt 0:00:08]} 42. a5 {[%emt 0:00:00]} Ke5 {[%emt 1:00:26]} 1-0

[Event "17th Memorial Lezcano Montalvo 2025"]
[Site "Gran Canaria"]
[Date "2025.04.13"]
[Round "2.54"]
[White "Quintana Arcila, Yaiza"]
[Black "Julien Casteleiro, Ariel"]
[Result "0-1"]
[Annotator "NA"]
[ECO "C01"]
[WhiteElo "1512"]
[BlackElo "1761"]
[PlyCount "84"]
[EventDate "2025.04.13"]
[EventType "swiss"]
[EventCountry "ESP"]
[SourceTitle "playchess.com"]
[Source "ChessBase"]
[SourceQuality "1"]
[TimeControl "5400+30"]

1. e4 {[%emt 0:00:02]} e6 {[%emt 0:00:05]} 2. d4 {[%emt 0:00:05]} d5 {[%emt 0:00:07]} 3. Bd3 {[%emt 0:00:06]} c5 {[%emt 0:00:39]} 4. exd5 {[%emt 0:02:25]} exd5 {[%emt 0:00:37]} 5. dxc5 {[%emt 0:00:09]} Bxc5 {[%emt 0:00:27]} 6. c3 {[%emt 0:00:23]} Qb6 {[%emt 0:03:06]} 7. Qe2+ {[%emt 0:00:25]} Ne7 {[%emt 0:00:17]} 8. Nf3 {[%emt 0:00:32]} Nbc6 {[%emt 0:05:40]} 9. O-O {[%emt 0:01:49]} Bg4 {[%emt 0:02:05]} 10. b4 {[%emt 0:03:27]} Bd6 {[%emt 0:00:19]} 11. h3 {[%emt 0:00:52]} Bxf3 {[%emt 0:00:46]} 12. Qxf3 {[%emt 0:00:07]} Ne5 {[%emt 0:00:16]} 13. Qe2 {[%emt 0:01:27]} Nxd3 {[%emt 0:00:31]} 14. Qxd3 {[%emt 0:00:12]} O-O {[%emt 0:00:16]} 15. Bg5 {[%emt 0:00:26]} f6 {[%emt 0:01:59]} 16. Be3 {[%emt 0:00:40]} Qc7 {[%emt 0:00:42]} 17. Nd2 {[%emt 0:00:48]} Kh8 {[%emt 0:03:08]} 18. Nb3 {[%emt 0:01:09]} Qc4 {[%emt 0:03:01]} 19. Qxc4 {[%emt 0:01:54]} dxc4 {[%emt 0:00:11]} 20. Nc5 {[%emt 0:03:57]} b6 {[%emt 0:02:37]} 21. Ne4 {[%emt 0:02:36]} Be5 {[%emt 0:01:11]} 22. Rac1 {[%emt 0:02:02]} Rad8 {[%emt 0:03:18]} 23. a4 {[%emt 0:01:40]} Nd5 {[%emt 0:02:14]} 24. Bd2 {[%emt 0:01:22]} h6 {[%emt 0:01:17]} 25. f4 {[%emt 0:07:08]} Bb8 {[%emt 0:01:04]} 26. g3 {[%emt 0:06:15]} Rfe8 {[%emt 0:01:32]} 27. Rfe1 {[%emt 0:02:52]} Ne7 {[%emt 0:01:49]} 28. Rc2 {[%emt 0:01:22]} f5 {[%emt 0:02:16]} 29. Nf2 {[%emt 0:00:13]} Nd5 {[%emt 0:00:37]} 30. Ra1 {[%emt 0:01:28]} a6 {[%emt 0:01:17]} 31. b5 {[%emt 0:03:50]} a5 {[%emt 0:00:20]} 32. Rd1 {[%emt 0:01:15]} Bd6 {[%emt 0:02:17]} 33. Bc1 {[%emt 0:01:09]} Bc5 {[%emt 0:06:56]} 34. Rcd2 {[%emt 0:03:12]} Be3 {[%emt 0:01:19]} 35. Rxd5 {[%emt 0:00:18]} Rxd5 {[%emt 0:00:12]} 36. Rxd5 {[%emt 0:00:13]} Bxc1 {[%emt 0:00:18]} 37. Rxf5 {[%emt 0:00:10]} Re3 {[%emt 0:01:22]} 38. Rf8+ {[%emt 0:00:57]} Kh7 {[%emt 0:00:09]} 39. Rb8 {[%emt 0:01:07]} Rxg3+ {[%emt 0:00:41]} 40. Kf1 {[%emt 0:00:33]} Be3 {[%emt 0:00:29]} 41. Ke2 {[%emt 0:00:42]} Bc5 {[%emt 0:00:17]} 42. Ne4 {[%emt 0:00:24]} Re3+ {[%emt 0:00:11]} 0-1

[Event "17th Memorial Lezcano Montalvo 2025"]
[Site "Gran Canaria"]
[Date "2025.04.13"]
[Round "2.55"]
[White "Grube, Kurt"]
[Black "Sancho Quesada, Juan Pedro"]
[Result "1/2-1/2"]
[Annotator "NA"]
[ECO "A22"]
[WhiteElo "1732"]
[BlackElo "1503"]
[PlyCount "114"]
[EventDate "2025.04.13"]
[EventType "swiss"]
[EventCountry "ESP"]
[SourceTitle "playchess.com"]
[Source "ChessBase"]
[SourceQuality "1"]
[TimeControl "5400+30"]

1. c4 {[%emt 0:00:03]} e5 {[%emt 0:00:16]} 2. Nc3 {[%emt 0:00:12]} Nf6 {[%emt 0:00:27]} 3. Nf3 {[%emt 0:00:23]} d6 {[%emt 0:00:25]} 4. d3 {[%emt 0:00:35]} Be7 {[%emt 0:00:40]} 5. e3 {[%emt 0:02:01]} c6 {[%emt 0:01:15]} 6. Be2 {[%emt 0:00:51]} O-O {[%emt 0:01:29]} 7. O-O {[%emt 0:00:04]} Re8 {[%emt 0:01:14]} 8. Qc2 {[%emt 0:02:34]} Bf5 {[%emt 0:02:53]} 9. e4 {[%emt 0:03:29]} Bg4 {[%emt 0:00:16]} 10. Be3 {[%emt 0:05:28]} Nbd7 {[%emt 0:00:47]} 11. d4 {[%emt 0:00:52]} Bf8 {[%emt 0:06:43]} 12. Rad1 {[%emt 0:06:00]} exd4 {[%emt 0:02:47]} 13. Bxd4 {[%emt 0:02:31]} Qc7 {[%emt 0:01:05]} 14. Rfe1 {[%emt 0:05:55]} c5 {[%emt 0:03:24]} 15. Be3 {[%emt 0:01:44]} Ne5 {[%emt 1:14:19]} 16. Nxe5 {[%emt 0:03:45]} dxe5 {[%emt 0:00:00]} 17. f3 {[%emt 0:01:15]} Be6 {[%emt 0:00:00]} 18. Nd5 {[%emt 0:02:23]} Nxd5 {[%emt 0:00:00]} 19. cxd5 {[%emt 0:00:08]} Bd7 {[%emt 0:00:00]} 20. Rc1 {[%emt 0:05:11]} b6 {[%emt 0:00:00]} 21. b4 {[%emt 0:04:39]} Rac8 {[%emt 0:00:00]} 22. Ba6 {[%emt 0:00:52]} Rb8 {[%emt 0:00:00]} 23. bxc5 {[%emt 0:02:04]} bxc5 {[%emt 0:00:00]} 24. Bc4 {[%emt 0:02:43]} Bd6 {[%emt 0:00:00]} 25. g3 {[%emt 0:03:31]} Kf8 {[%emt 0:00:00]} 26. Rf1 {[%emt 0:01:03]} f6 {[%emt 0:00:00]} 27. f4 {[%emt 0:43:44]} Rb6 {[%emt 0:00:00]} 28. Bb3 {[%emt 0:00:00]} Rc8 {[%emt 0:00:00]} 29. fxe5 {[%emt 0:00:00]} Bxe5 {[%emt 0:00:00]} 30. Bxc5+ {[%emt 0:00:00]} Ke8 {[%emt 0:00:00]} 31. Kg2 {[%emt 0:00:00]} Rb7 {[%emt 0:00:00]} 32. Qf2 {[%emt 0:00:00]} Qa5 {[%emt 0:00:00]} 33. Be3 {[%emt 0:00:00]} Bd6 {[%emt 0:00:00]} 34. Rxc8+ {[%emt 0:00:00]} Bxc8 {[%emt 0:00:00]} 35. Rc1 {[%emt 0:00:00]} Bd7 {[%emt 0:00:00]} 36. Qe2 {[%emt 0:00:00]} Bb5 {[%emt 0:00:00]} 37. Qg4 {[%emt 0:00:00]} Bd7 {[%emt 0:00:00]} 38. Qh5+ {[%emt 0:00:00]} g6 {[%emt 0:00:00]} 39. Qxh7 {[%emt 0:00:00]} Qb5 {[%emt 0:00:00]} 40. Qxg6+ {[%emt 0:00:00]} Kd8 {[%emt 0:00:00]} 41. Qxf6+ {[%emt 0:00:00]} Be7 {[%emt 0:00:00]} 42. Qh8+ {[%emt 0:00:00]} Be8 {[%emt 0:00:00]} 43. Kf2 {[%emt 0:00:00]} Qd3 {[%emt 0:00:00]} 44. Rc8+ {[%emt 0:00:00]} Kxc8 {[%emt 0:00:00]} 45. Qxe8+ {[%emt 0:00:07]} Bd8 {[%emt 0:00:00]} 46. Qc6+ {[%emt 0:01:32]} Rc7 {[%emt 0:00:00]} 47. Qa8+ {[%emt 0:00:44]} Kd7 {[%emt 0:00:00]} 48. Ba4+ {[%emt 0:00:17]} Ke7 {[%emt 0:00:00]} 49. Bg5+ {[%emt 0:00:54]} Kf7 {[%emt 0:00:00]} 50. Qxd8 {[%emt 0:00:31]} Qd4+ {[%emt 0:00:00]} 51. Be3 {[%emt 0:00:52]} Qb2+ {[%emt 0:00:00]} 52. Kf3 {[%emt 0:00:18]} Qe5 {[%emt 0:00:00]} 53. Bb3 {[%emt 0:01:48]} Qh5+ {[%emt 0:00:00]} 54. Kg2 {[%emt 0:00:55]} Qe2+ {[%emt 0:00:00]} 55. Bf2 {[%emt 0:00:25]} Qxe4+ {[%emt 0:00:00]} 56. Kh3 {[%emt 0:00:45]} Qf5+ {[%emt 0:00:00]} 57. Kg2 {[%emt 0:00:07]} Qe4+ {[%emt 0:21:00]} 1/2-1/2

[Event "17th Memorial Lezcano Montalvo 2025"]
[Site "Gran Canaria"]
[Date "2025.04.13"]
[Round "2.56"]
[White "Chara Erazo, Laura"]
[Black "Matos Espino, Carlos Silverio"]
[Result "0-1"]
[Annotator "NA"]
[ECO "A03"]
[WhiteElo "1500"]
[BlackElo "1731"]
[PlyCount "28"]
[EventDate "2025.04.13"]
[EventType "swiss"]
[EventCountry "ESP"]
[SourceTitle "playchess.com"]
[Source "ChessBase"]
[SourceQuality "1"]
[TimeControl "5400+30"]

1. f4 {[%emt 0:00:03]} d5 {[%emt 0:00:07]} 2. Nf3 {[%emt 0:00:12]} Nf6 {[%emt 0:00:16]} 3. b3 {[%emt 0:00:22]} Bf5 {[%emt 0:01:44]} 4. Bb2 {[%emt 0:00:27]} e6 {[%emt 0:00:23]} 5. e3 {[%emt 0:00:30]} Be7 {[%emt 0:01:01]} 6. h3 {[%emt 0:01:51]} Nbd7 {[%emt 0:01:21]} 7. d3 {[%emt 0:00:31]} c6 {[%emt 0:01:52]} 8. Nbd2 {[%emt 0:03:48]} Nh5 {[%emt 0:01:47]} 9. Rg1 {[%emt 0:04:50]} Bh4+ {[%emt 0:02:47]} 10. g3 {[%emt 0:07:56]} Bxg3+ {[%emt 0:00:36]} 11. Ke2 {[%emt 0:01:13]} Qb6 {[%emt 0:01:02]} 12. Bg2 {[%emt 0:04:10]} Nxf4+ {[%emt 0:00:20]} 13. Kf1 {[%emt 0:04:14]} Qxe3 {[%emt 0:00:23]} 14. Qe1 {[%emt 0:01:06]} Bxd3+ {[%emt 0:00:19]} 0-1